[Event "44th Chess Olympiad Open 2022"]
[Site "Chennai"]
[Date "2022.07.30"]
[Round "2.22"]
[White "Rodshtein, Maxim"]
[Black "Mhango, Banele"]
[Result "0-1"]
[WhiteElo "2596"]
[BlackElo "2238"]
[Annotator "TA"]
[PlyCount "102"]
[EventDate "2022.??.??"]
[TimeControl "60"]

{[%evp 17,102,58,69,11,24,22,43,24,24,28,32,25,16,29,33,0,0,0,0,0,0,-24,-22,
-77,-45,-48,-58,-58,-58,-60,-46,-50,-21,-25,-17,-20,-18,-30,-16,-66,-66,-66,
-34,-34,-34,-82,-66,-84,-39,-49,-49,-49,-35,-36,-67,-195,-169,-174,-135,-424,
-424,-2181,-2050,-1901,-1663,-4041,-2399,-29969,-29969,-29969,-29973,-29973,
-29974,-29974,-29976,-29973,-29976,-29976,-29977,-29975,-29976,-29978,-29977,
-29977,-29975,-29987,-29977]} 1. d4 {[%emt 0:00:05]} Nf6 {[%emt 0:00:04]} 2. c4
{[%emt 0:00:11]} c5 {[%emt 0:00:04]} 3. d5 {[%emt 0:00:41]} g6 {[%emt 0:00:07]}
4. Nc3 {[%emt 0:00:14]} Bg7 {[%emt 0:00:04]} 5. e4 {[%emt 0:02:34]} d6 {
[%emt 0:00:06]} 6. h3 {[%emt 0:01:56]} O-O {[%emt 0:00:31]} 7. Nf3 {[%emt 0:00:
00]} e6 {[%emt 0:00:19]} 8. Bd3 {[%emt 0:01:36]} Na6 {[%emt 0:00:15]} 9. O-O {
[%emt 0:19:46]} Nc7 {[%emt 0:01:03] 9...e5 is the fancy move.} 10. dxe6 {
[%emt 0:07:26] E90: King's Indian: Classical: Early deviations and 6 h3.} (10.
Qb3 $14) 10... Nxe6 $11 {[%emt 0:01:00]} 11. Be3 {[%emt 0:01:06]} a6 {[%emt 0:
00:00]} 12. Qd2 {[%emt 0:07:07] [#] White is slightly better.} b5 $146 {
[%emt 0:04:05]} ({Predecessor:} 12... Re8 13. Nd5 Bd7 14. Rad1 b5 15. Qc2 Bc6
16. Rfe1 Qb8 17. b3 Qb7 18. Bf1 Rad8 {½-½ (46) Kantor,G (2255)-Farago,S 
(2269) Budapest 2011}) 13. cxb5 {[%emt 0:07:01]} axb5 {[%emt 0:00:06]} 14. Nxb5
{[%emt 0:15:24]} d5 {[%emt 0:03:54]} 15. exd5 {[%emt 0:02:36]} Nxd5 {[%emt 0:
00:00]} 16. Bh6 {[%emt 0:05:07]} Bxh6 {[%emt 0:06:20]} 17. Qxh6 {[%emt 0:00:04]
} Ndf4 {[%emt 0:00:07]} 18. Be4 {[%emt 0:01:27]} Rb8 {[%emt 0:06:53]} 19. Rad1
{[%emt 0:03:07]} Qf6 {[%emt 0:00:20]} 20. Nc3 {[%emt 0:03:08]} (20. a4 $11 {
keeps the balance.}) 20... Rxb2 {[%emt 0:02:32]} 21. Nd5 {[%emt 0:00:37]} Nxd5
{[%emt 0:00:38]} 22. Bxd5 {[%emt 0:00:12]} Qf4 {[%emt 0:00:38]} 23. Qxf4 {
[%emt 0:00:42]} Nxf4 {[%emt 0:00:09]} 24. Bc4 {[%emt 0:11:40] Against Ba6} Be6
{[%emt 0:02:24]} 25. Bxe6 {[%emt 0:00:25]} Nxe6 {[%emt 0:00:38]} 26. Rd2 {
[%emt 0:02:44]} Rxd2 {[%emt 0:00:25]} 27. Nxd2 {[%emt 0:00:03] Endgame KRN-KRN}
Ra8 {[%emt 0:00:16]} 28. Rc1 {[%emt 0:04:59]} (28. Ra1 $11) 28... Rxa2 $15 {
[%emt 0:00:25]} 29. Nb3 {[%emt 0:00:05]} Nd4 {[%emt 0:04:42]} (29... Nf4 $5 {
[%cal Rf4e2]} 30. Rxc5 Nd3 31. Rc8+ Kg7 $17) 30. Nxd4 {[%emt 0:00:00]} cxd4 {
[%emt 0:00:05] KR-KR} 31. Rc8+ {[%emt 0:00:05]} Kg7 {[%emt 0:00:00]} 32. Rd8 {
[%emt 0:00:27]} Ra1+ {[%emt 0:04:07]} 33. Kh2 {[%emt 0:00:03]} Rd1 {[%emt 0:00:
04]} 34. Kg3 {[%emt 0:03:20]} Kf6 {[%emt 0:00:16]} 35. Kf4 {[%emt 0:00:52]} Rd2
{[%emt 0:00:48]} 36. f3 {[%emt 0:00:39]} (36. Kf3 $15) 36... g5+ {[%emt 0:03:
53][%cal Yg6g5,Yg5f4]} ({And not} 36... Rxg2 37. Rd6+ Kg7 38. Rxd4 $17) 37. Kg3
{[%emt 0:00:38]} Ke5 {[%emt 0:02:23] Inhibits f4+. aiming for ...d3.} 38. Rh8
$2 {[%emt 0:00:31] [#] Now White is beyond hope.} (38. Re8+ $17 {is the only
way for White.} Kf5 39. Re7) 38... d3 $1 $19 {[%emt 0:01:49]} 39. f4+ {[%emt 0:
00:08]} (39. Rxh7 $142 Rxg2+ 40. Kxg2) 39... gxf4+ {[%emt 0:01:10]} 40. Kf3 {
[%emt 0:00:03]} Rd1 {[%emt 0:00:16] White must now prevent ...Rf1+.} 41. Kf2 {
[%emt 0:31:10] Prevents Rf1+.} Kd4 {[%emt 0:37:06]} 42. Rxh7 {[%emt 0:00:20]}
Rh1 {[%emt 0:04:36] Black mates.} 43. Rxf7 {[%emt 0:00:47]} d2 {[%emt 0:00:25]}
44. Rd7+ {[%emt 0:00:12]} Kc3 {[%emt 0:00:07]} 45. Kf3 {[%emt 0:00:17]} d1=Q+ {
[%emt 0:02:10]} 46. Rxd1 {[%emt 0:00:03]} Rxd1 {[%emt 0:00:08]} 47. Kxf4 {
[%emt 0:00:02] KR-KPP} Kd4 {[%emt 0:00:39]} 48. h4 {[%emt 0:00:34]} Kd5 {
[%emt 0:01:45]} 49. Kg5 {[%emt 0:00:00]} Ke6 {[%emt 0:00:36]} 50. g4 {[%emt 0:
00:35]} Kf7 {[%emt 0:00:11]} 51. Kh6 {[%emt 0:00:07]} Rd4 {[%emt 0:01:02]
Weighted Error Value: White=0.72/ Black=0.07 (flawless)} 0-1

[Event "44th Chess Olympiad Open 2022"]
[Site "Chennai"]
[Date "2022.07.30"]
[Round "2.22"]
[White "Solomon, Kenny"]
[Black "Boruchovsky, Avital"]
[Result "1/2-1/2"]
[WhiteElo "2355"]
[BlackElo "2551"]
[Annotator "TA"]
[PlyCount "107"]
[EventDate "2022.??.??"]
[TimeControl "60"]

{[%evp 12,107,7,0,0,0,0,11,17,11,0,0,26,28,19,26,53,-1,26,6,0,0,7,-7,6,0,0,0,5,
0,0,-13,-2,-21,0,-10,0,0,0,-14,-24,-19,-21,-29,-37,-27,-27,-35,-27,-17,0,-25,
-5,-19,-28,-18,-20,-13,0,-29,-14,-14,14,-14,0,-37,-11,-11,-13,-35,-6,-32,-23,
-28,-26,-24,-18,-53,-46,-60,-60,-60,-60,-128,-34,-33,-3,-28,-26,-39,0,0,0,-52,
0,0,0,0]} 1. e4 {[%emt 0:00:04]} c5 {[%emt 0:00:29]} 2. Nf3 {[%emt 0:00:09]} d6
{[%emt 0:00:05]} 3. c3 {[%emt 0:01:16]} Nf6 {[%emt 0:00:48]} 4. Be2 {[%emt 0:
00:00]} e6 {[%emt 0:04:33]} 5. O-O {[%emt 0:00:34]} Nc6 {[%emt 0:07:27]} 6. d3
{[%emt 0:00:38]} Be7 {[%emt 0:00:46]} 7. Nbd2 {[%emt 0:06:11] has lost
popularity (7.Re1).} e5 {[%emt 0:02:58] B50: Sicilian: 2...d6, Miscellaneous.}
8. Re1 {[%emt 0:21:56]} O-O {[%emt 0:00:48]} 9. Bf1 {[%emt 0:00:33]} Re8 {
[%emt 0:09:25]} 10. a3 {[%emt 0:12:18] [#]} a6 $146 {[%emt 0:12:31]} ({
Predecessor:} 10... Nb8 11. b4 Nbd7 12. bxc5 dxc5 13. Nc4 Bf8 14. Bg5 Qc7 15.
d4 exd4 16. e5 Nd5 17. cxd4 {1-0 (39) Yudasin,L (2600)-Del Campo,M Chicago 1997
}) 11. b4 {[%emt 0:04:50]} d5 {[%emt 0:02:58]} 12. exd5 {[%emt 0:02:28]} Nxd5 {
[%emt 0:03:57]} 13. Bb2 {[%emt 0:01:12]} Bf8 {[%emt 0:07:57]} 14. g3 {[%emt 0:
00:00]} ({Better is} 14. c4 $14 Nf6 15. Nxe5) 14... Nb6 {[%emt 0:06:47]} 15.
Qc2 {[%emt 0:07:49]} Bf5 {[%emt 0:01:30]} 16. Ne4 {[%emt 0:03:23]} cxb4 {
[%emt 0:02:09]} 17. axb4 {[%emt 0:01:59]} Rc8 {[%emt 0:00:44][%cal Yc6b4]} 18.
Qb1 {[%emt 0:07:10]} h6 {[%emt 0:08:37]} 19. Nh4 {[%emt 0:00:00]} Bh7 {[%emt 0:
00:00]} 20. Qa2 {[%emt 0:00:21]} Qc7 {[%emt 0:04:00]} 21. Bh3 {[%emt 0:07:42]}
Rcd8 {[%emt 0:00:07]} 22. Rad1 {[%emt 0:00:02]} Nc8 {[%emt 0:02:55]} 23. Nf5 {
[%emt 0:01:14][%cal Yf5h6]} Kh8 {[%emt 0:03:47]} 24. Qb3 {[%emt 0:03:34]} Nb6 {
[%emt 0:03:27]} 25. Ne3 {[%emt 0:02:09]} Bg8 {[%emt 0:00:45][%cal Yf7f5] White
must now prevent ...f5!} 26. Qc2 $1 {[%emt 0:00:29]} Nd5 {[%emt 0:00:15]} 27.
Nxd5 {[%emt 0:01:05]} Rxd5 {[%emt 0:00:02]} 28. Qe2 {[%emt 0:01:41]} Bh7 {
[%emt 0:01:03]} 29. Qf3 {[%emt 0:00:56][%cal Ye4f6] And now Nf6! would win.}
Rdd8 {[%emt 0:00:00]} 30. Bg4 {[%emt 0:02:24]} Bg6 {[%emt 0:01:55]} 31. h4 {
[%emt 0:00:22]} Na7 {[%emt 0:00:54]} 32. h5 {[%emt 0:00:11]} Bh7 {[%emt 0:00:
00]} 33. Bf5 {[%emt 0:00:20]} Bxf5 {[%emt 0:03:03]} 34. Qxf5 {[%emt 0:00:02]}
Qd7 {[%emt 0:01:12]} 35. g4 {[%emt 0:01:35]} Qxf5 {[%emt 0:02:31]} 36. gxf5 {
[%emt 0:00:01]} Nc8 {[%emt 0:00:38][%cal Ya7c8,Yc8e7,Ye7d5,Yd5b6,Yb6c4]} 37.
Kg2 {[%emt 0:00:19]} Ne7 {[%emt 0:00:38]} 38. Ng3 {[%emt 0:01:00]} (38. Nc5 $5
{[%cal Rc5b7]}) 38... Nd5 {[%emt 0:00:18]} 39. Kf3 {[%emt 0:00:03]} Rc8 {
[%emt 0:00:40]} 40. Rc1 {[%emt 0:01:10]} f6 {[%emt 0:00:36]} 41. Ne2 {[%emt 0:
04:20]} Nb6 {[%emt 0:04:23]} 42. Ng3 {[%emt 0:04:35]} Red8 {[%emt 0:00:00]} 43.
Red1 {[%emt 0:02:02]} Rd7 {[%emt 0:00:46]} 44. Ra1 {[%emt 0:05:26]} Rcd8 {
[%emt 0:04:12][%cal Yb6c4] Strongly threatening ...Nc4!} 45. Ke4 {[%emt 0:02:
02] [#]} Nc4 $1 {[%emt 0:02:31]} 46. Rab1 {[%emt 0:02:57]} Kg8 {[%emt 0:02:00]}
47. Ba1 {[%emt 0:00:15] [#]} (47. Bc1 $1 $15) 47... b5 {[%emt 0:00:53]} (47...
b6 $1 $17 48. d4 Re8) 48. Bb2 $15 {[%emt 0:01:52][%cal Ya1b2,Yb2c1,Yc1d2]} Nb6
{[%emt 0:03:26]} 49. Bc1 {[%emt 0:02:00]} Rc8 {[%emt 0:01:09] Threatens to win
with ...Nd5.} 50. Bd2 {[%emt 0:01:15]} Rc6 {[%emt 0:00:53]} (50... Na4 $5 {
[%cal Rc8c3]} 51. Ne2 Kh7 $15) 51. Rb3 {[%emt 0:00:00]} Kf7 {[%emt 0:02:47]}
52. f4 {[%emt 0:01:37]} (52. Be3 $11) 52... exf4 {[%emt 0:05:05]} (52... Be7
$15) 53. Ne2 $1 $11 {[%emt 0:02:14]} f3 {[%emt 0:00:00]} 54. Nd4 {[%emt 0:00:
02] Weighted Error Value: White=0.12 (very precise) / Black=0.12 (very precise)
} 1/2-1/2

[Event "44th Chess Olympiad Open 2022"]
[Site "Chennai"]
[Date "2022.07.30"]
[Round "2.22"]
[White "Zhakshylykov, Erzhan"]
[Black "Ivanisevic, Ivan"]
[Result "0-1"]
[WhiteElo "2332"]
[BlackElo "2561"]
[Annotator "ChessBase"]
[PlyCount "102"]
[EventDate "2022.??.??"]
[TimeControl "60"]

1. d4 {[%emt 0:00:05]} Nf6 {[%emt 0:00:04]} 2. c4 {[%emt 0:00:11]} c5 {[%emt 0:
00:00]} 3. d5 {[%emt 0:00:41]} g6 {[%emt 0:00:07]} 4. Nc3 {[%emt 0:00:14]} Bg7
{[%emt 0:00:04]} 5. e4 {[%emt 0:02:34]} d6 {[%emt 0:00:06]} 6. h3 {[%emt 0:00:
00]} O-O {[%emt 0:00:31]} 7. Nf3 {[%emt 0:00:11]} e6 {[%emt 0:00:19]} 8. Bd3 {
[%emt 0:01:36]} Na6 {[%emt 0:00:15]} 9. O-O {[%emt 0:19:46]} Nc7 {[%emt 0:00:
00]} 10. dxe6 {[%emt 0:07:26]} Nxe6 {[%emt 0:01:00]} 11. Be3 {[%emt 0:01:06]}
a6 {[%emt 0:16:48]} 12. Qd2 {[%emt 0:07:07]} b5 {[%emt 0:04:05]} 13. cxb5 {
[%emt 0:07:01]} axb5 {[%emt 0:00:06]} 14. Nxb5 {[%emt 0:15:24]} d5 {[%emt 0:00:
00]} 15. exd5 {[%emt 0:02:36]} Nxd5 {[%emt 0:03:00]} 16. Bh6 {[%emt 0:05:07]}
Bxh6 {[%emt 0:06:20]} 17. Qxh6 {[%emt 0:00:04]} Ndf4 {[%emt 0:00:07]} 18. Be4 {
[%emt 0:01:27]} Rb8 {[%emt 0:06:53]} 19. Rad1 {[%emt 0:03:07]} Qf6 {[%emt 0:00:
00]} 20. Nc3 {[%emt 0:03:08]} Rxb2 {[%emt 0:02:32]} 21. Nd5 {[%emt 0:00:37]}
Nxd5 {[%emt 0:00:38]} 22. Bxd5 {[%emt 0:00:12]} Qf4 {[%emt 0:00:38]} 23. Qxf4 {
[%emt 0:00:42]} Nxf4 {[%emt 0:00:09]} 24. Bc4 {[%emt 0:11:40]} Be6 {[%emt 0:00:
00]} 25. Bxe6 {[%emt 0:00:25]} Nxe6 {[%emt 0:00:38]} 26. Rd2 {[%emt 0:02:44]}
Rxd2 {[%emt 0:00:25]} 27. Nxd2 {[%emt 0:00:03]} Ra8 {[%emt 0:00:16]} 28. Rc1 {
[%emt 0:04:59]} Rxa2 {[%emt 0:00:25]} 29. Nb3 {[%emt 0:00:05]} Nd4 {[%emt 0:00:
00]} 30. Nxd4 {[%emt 0:00:08]} cxd4 {[%emt 0:00:05]} 31. Rc8+ {[%emt 0:00:05]}
Kg7 {[%emt 0:00:05]} 32. Rd8 {[%emt 0:00:27]} Ra1+ {[%emt 0:04:07]} 33. Kh2 {
[%emt 0:00:03]} Rd1 {[%emt 0:00:04]} 34. Kg3 {[%emt 0:03:20]} Kf6 {[%emt 0:00:
00]} 35. Kf4 {[%emt 0:00:52]} Rd2 {[%emt 0:00:48]} 36. f3 {[%emt 0:00:39]} g5+
{[%emt 0:03:53]} 37. Kg3 {[%emt 0:00:38]} Ke5 {[%emt 0:02:23]} 38. Rh8 {
[%emt 0:00:31]} d3 {[%emt 0:01:49]} 39. f4+ {[%emt 0:00:08]} gxf4+ {[%emt 0:00:
00]} 40. Kf3 {[%emt 0:00:03]} Rd1 {[%emt 0:00:16]} 41. Kf2 {[%emt 0:31:10]} Kd4
{[%emt 0:37:06]} 42. Rxh7 {[%emt 0:00:20]} Rh1 {[%emt 0:04:36]} 43. Rxf7 {
[%emt 0:00:47]} d2 {[%emt 0:00:25]} 44. Rd7+ {[%emt 0:00:12]} Kc3 {[%emt 0:00:
00]} 45. Kf3 {[%emt 0:00:17]} d1=Q+ {[%emt 0:02:10]} 46. Rxd1 {[%emt 0:00:03]}
Rxd1 {[%emt 0:00:08]} 47. Kxf4 {[%emt 0:00:02]} Kd4 {[%emt 0:00:39]} 48. h4 {
[%emt 0:00:34]} Kd5 {[%emt 0:01:45]} 49. Kg5 {[%emt 0:01:49]} Ke6 {[%emt 0:00:
00]} 50. g4 {[%emt 0:00:35]} Kf7 {[%emt 0:00:11]} 51. Kh6 {[%emt 0:00:07]} Rd4
{[%emt 0:01:02]} 0-1

[Event "44th Chess Olympiad Open 2022"]
[Site "Chennai"]
[Date "2022.07.30"]
[Round "2.22"]
[White "Barrish, Daniel"]
[Black "Smirin, Ilia"]
[Result "0-1"]
[WhiteElo "2283"]
[BlackElo "2601"]
[Annotator "TA"]
[PlyCount "164"]
[EventDate "2022.??.??"]
[TimeControl "60"]

{[%evp 9,164,22,31,24,29,22,27,22,21,14,22,18,19,12,36,19,24,27,17,18,79,0,35,
34,35,35,35,44,71,10,14,19,47,31,26,0,48,48,53,51,48,50,73,68,85,56,81,81,81,
82,93,92,94,62,67,54,76,70,89,89,154,152,138,85,100,62,62,62,67,62,160,83,121,
84,147,92,104,0,0,0,102,0,55,0,109,97,85,81,82,0,0,0,0,0,0,0,0,0,0,0,0,-190,
-185,-233,-220,-202,-194,-265,-54,-55,-70,-61,-112,-163,-135,-164,-184,-5073,
-613,-3022,-2177,-29968,-29969,-29947,-6075,-29969,-29971,-29982,-29955,-29948,
-29953,-29953,-29954,-29952,-5414,-5081,-5065,-491,-440,-433,-402,-394,-275,
-468,-461,-29980,-29981,-29981,-29982,-29980,-29983,-29983,-29984,-29984,
-29985,-29985,-29986]} 1. d4 {[%emt 0:00:13]} Nf6 {[%emt 0:00:06]} 2. Bf4 {
[%emt 0:00:15]} c5 {[%emt 0:00:40]} 3. d5 {[%emt 0:00:19]} d6 {[%emt 0:00:46]}
4. Nc3 {[%emt 0:00:18]} a6 {[%emt 0:00:33]} 5. a4 {[%emt 0:00:46]} e5 {[%emt 0:
00:00]} 6. Bg5 {[%emt 0:00:17] A45: Trompowsky Attack.} Be7 {[%emt 0:04:20]
[%cal Yf6d5]} 7. Bxf6 {[%emt 0:01:10]} Bxf6 {[%emt 0:00:48]} 8. e4 {[%emt 0:00:
00] White has an edge.} b6 {[%emt 0:07:20]} 9. Nf3 {[%emt 0:00:42]} O-O {
[%emt 0:00:30] [#]} 10. h4 $146 {[%emt 0:03:02]} ({Predecessor:} 10. Nd2 Nd7
11. Nc4 Be7 12. Be2 Nf6 13. O-O Bd7 14. Kh1 Rb8 15. Nxe5 dxe5 16. d6 {½-½ 
(48) Rogos,J (2473)-Kristjansson,A (2420) ICCF email 2011}) 10... Be7 {[%emt 0:
00:00]} 11. g3 {[%emt 0:02:38]} Ra7 {[%emt 0:08:06]} 12. Bh3 {[%emt 0:06:55]}
Bxh3 {[%emt 0:01:48]} 13. Rxh3 {[%emt 0:00:06]} Qc8 {[%emt 0:00:29]} 14. Rh1 {
[%emt 0:00:26]} f5 {[%emt 0:00:16]} (14... Rb7 $11) 15. Nd2 {[%emt 0:13:40]} (
15. Ng5 $1 $16) 15... f4 {[%emt 0:01:38]} 16. Qe2 {[%emt 0:03:47]} fxg3 {
[%emt 0:09:30]} 17. fxg3 {[%emt 0:00:16]} Nd7 {[%emt 0:00:04]} 18. Nc4 {
[%emt 0:05:32]} Qd8 {[%emt 0:04:24]} 19. Rb1 {[%emt 0:11:16]} (19. O-O-O $16)
19... Rb7 {[%emt 0:03:46]} (19... Nf6 $5 {[%cal Rd8e8]}) 20. Na3 {[%emt 0:00:
00] Against b5} b5 {[%emt 0:11:32]} 21. axb5 {[%emt 0:01:04]} axb5 {[%emt 0:00:
00]} 22. Ncxb5 {[%emt 0:12:28]} Qa5+ {[%emt 0:01:08]} (22... c4 $11 {might be
stronger.}) 23. Kd1 $14 {[%emt 0:01:02]} Qb4 {[%emt 0:06:41]} 24. b3 {[%emt 0:
00:00]} Nf6 {[%emt 0:05:03]} 25. c4 $1 {[%emt 0:00:37]} Qa5 {[%emt 0:07:02]}
26. Rf1 {[%emt 0:01:43]} h5 {[%emt 0:01:39]} 27. Nc2 {[%emt 0:01:43]} Ra8 {
[%emt 0:02:33]} 28. Kc1 {[%emt 0:02:29]} Qd8 {[%emt 0:01:25]} 29. Kb2 {[%emt 0:
00:00]} Qd7 {[%emt 0:03:58]} (29... Qa5 $2 30. Ra1 Qd8 31. Rxa8 Qxa8 32. Qf3
$16) 30. Ra1 {[%emt 0:01:38]} Rbb8 {[%emt 0:00:05]} 31. Ra4 {[%emt 0:02:50]} (
31. Ne3 {is more complex.} g6 32. Qg2 Kg7 33. Rfb1) 31... Rxa4 {[%emt 0:03:46]}
32. bxa4 {[%emt 0:00:05]} Ra8 {[%emt 0:02:36]} 33. Ra1 {[%emt 0:00:09]} Bd8 {
[%emt 0:00:14]} 34. Qf3 {[%emt 0:00:58]} Ba5 {[%emt 0:01:14]} (34... Be7 $142)
35. Ne3 $1 $16 {[%emt 0:01:03]} Rf8 {[%emt 0:01:06]} 36. Rf1 {[%emt 0:01:51]} (
36. Qf5 $142) 36... g6 {[%emt 0:01:41]} 37. Qg2 {[%emt 0:01:55]} Kg7 {[%emt 0:
00:00]} 38. Kb3 {[%emt 0:02:02]} Bd8 {[%emt 0:03:38]} 39. Kc2 {[%emt 0:07:03]}
Qc8 {[%emt 0:01:28]} (39... Ba5 $14) 40. Kd3 {[%emt 0:02:42]} (40. Nxd6 Qa6 41.
Nb5 Qxa4+ 42. Kb2 Ba5 $11) (40. a5 $142 $1) 40... Qa6 {[%emt 0:01:27]} 41. Qc2
{[%emt 0:06:41]} Rf7 {[%emt 0:03:44]} (41... Ba5 $142) 42. Qd1 {[%emt 0:03:19]}
(42. a5 $142 $1) 42... Rf8 {[%emt 0:01:14]} 43. Nc3 {[%emt 0:06:36]} Ba5 {
[%emt 0:02:17] ...Bxc3 is the strong threat. The board is on fire.} 44. Nb5 {
[%emt 0:01:05]} Bd8 $1 {[%emt 0:00:10]} 45. Rh1 {[%emt 0:04:08]} (45. Rf2 $16)
45... Rf7 {[%emt 0:03:00]} ({Better is} 45... Ng4 $1 $11 46. Nxg4 hxg4) 46. Rh2
{[%emt 0:01:32]} (46. a5 $14) 46... Rf8 {[%emt 0:02:13]} (46... Ng4 $1 $11 47.
Nxg4 hxg4) 47. Rb2 {[%emt 0:01:47]} Ba5 {[%emt 0:01:14]} 48. Qe2 {[%emt 0:00:
00]} Bd8 {[%emt 0:00:39]} 49. Nc3 {[%emt 0:01:35] Pair of Knights!} ({White
should try} 49. Ra2 $16) 49... Ba5 $11 {[%emt 0:00:47]} 50. Ncd1 {[%emt 0:00:
00]} Bb4 {[%emt 0:01:20]} 51. Ra2 {[%emt 0:00:24]} Rb8 {[%emt 0:02:16]} 52. Qc2
{[%emt 0:05:45]} Be1 {[%emt 0:01:26]} 53. Rb2 {[%emt 0:12:54]} Rb4 {[%emt 0:00:
00]} 54. Rxb4 {[%emt 0:00:00]} cxb4 {[%emt 0:00:04]} 55. Ke2 $2 {[%emt 0:00:00]
} (55. Nf1 $1 $11) 55... Bxg3 $19 {[%emt 0:00:11]} 56. Kf3 {[%emt 0:00:00]} (
56. Ng2 $142) 56... Bxh4 {[%emt 0:01:59] And now ...Nd7 would win.} 57. c5 {
[%emt 0:00:00] [#]} dxc5 {[%emt 0:00:44][%cal Yf6g4]} 58. Qxc5 {[%emt 0:00:00]}
(58. Qh2 $142 Bg5 59. Qxe5) 58... Qb7 $2 {[%emt 0:01:09]} ({Weaker is} 58...
Qd3 59. Qe7+ Kg8 60. Qd8+ Kf7 61. Qc7+ Kf8 62. Qd8+ Kg7 63. Qe7+ Kh8 64. Qd8+
Kh7 65. Qe7+ Kh8 66. Qd8+ Kh7 67. Qe7+ Kh8 $11) (58... Nh7 $19 {( -> ...Ng5+)}
59. Qb5 (59. Qc7+ $2 Kh6 $19) 59... Ng5+ 60. Ke2 Qxb5+ 61. axb5 Nxe4) 59. Qd6 {
[%emt 0:00:00]} Ng4 {[%emt 0:01:13]} 60. Nxg4 {[%emt 0:00:00]} Qf7+ {[%emt 0:
00:00]} ({Much worse is} 60... hxg4+ 61. Kxg4 Bf6 62. Qc6 $11) 61. Ke2 {
[%emt 0:00:00]} hxg4 {[%emt 0:00:08][%cal Yh5g4,Yg4g3,Yg3g2]} 62. Qxe5+ {
[%emt 0:00:00] Endgame [#] KQB-KQN} Kh7 $1 {[%emt 0:01:41]} 63. d6 $2 {[%emt 0:
00:00]} (63. Qh2 Qf6 64. Qc7+ Kh6 65. Ne3 Qf3+ 66. Kd3) 63... Qf3+ {[%emt 0:01:
04]} 64. Kd2 {[%emt 0:00:00]} g3 {[%emt 0:00:05] Inhibits Qh2. Strongly
threatening ...Bf6.} 65. d7 {[%emt 0:00:00]} Bd8 {[%emt 0:03:32]} 66. Ne3 {
[%emt 0:00:00]} b3 {[%emt 0:00:04]} (66... Qf2+ $142 67. Kd3 b3 68. Qb8 b2 69.
Nd1 Qf3+ 70. Kc2 g2 71. Qh2+ Kg7 72. Nxb2 Qxe4+ 73. Nd3 Qxa4+ 74. Kd2 Qa2+ 75.
Kd1 Qa1+ 76. Ke2 Qf1+ 77. Kd2 g1=Q 78. Qxg1 Qxg1 79. Kc3 Qe3 80. Kc4 Qe2 81.
Kd4 Bf6+ 82. Kc4 Qc2+ 83. Kb4 Qxd3 84. d8=B Bxd8 85. Kc5 Qc3+ 86. Kd5 Bb6 87.
Ke6 Qc4+ 88. Kd6 Kf6 89. Kd7 Qe6#) 67. Qb8 {[%emt 0:00:00]} Bg5 {[%emt 0:01:00]
} 68. Qxb3 {[%emt 0:00:00]} g2 {[%emt 0:00:44]} 69. d8=Q {[%emt 0:00:00]} Bxd8
{[%emt 0:00:58]} 70. Qb7+ {[%emt 0:00:00]} Kh6 {[%emt 0:00:10]} 71. Nxg2 {
[%emt 0:00:00]} Bg5+ {[%emt 0:00:21]} (71... Qxg2+ $142 72. Ke3 Bg5+ 73. Kd4
Bf6+ 74. Ke3 Qg3+ 75. Ke2 Qg4+ 76. Kd2 Bg5+ 77. Kc3 Qd1 78. Qd5 Qxa4 79. e5 Be7
80. Kd2 Qf4+ 81. Kd1 Kg7 82. Ke2 g5 83. Qe6 Qe4+ 84. Kd1 Qd3+ 85. Ke1 Qe4+ 86.
Kd1 Qd3+ 87. Ke1 Bb4+ 88. Kf2 Bc5+ 89. Kg2 Qe2+ 90. Kh3 Qf3+ 91. Kh2 Qh5+ 92.
Kg3 Qf7 93. Qc6 Bd4 94. Qc1 Qf2+ 95. Kg4 Qe2+ 96. Kf5 Qxe5+ 97. Kg4 Qe4+ 98.
Kg3 Be5+ 99. Kf2 Kg6 100. Qa3 g4 101. Kf1 g3 102. Qa6+ Kg5 103. Qb5 Qf5+ 104.
Ke2 Qf2+ 105. Kd1 Qd4+ 106. Kc2 g2 107. Qb3 Qf2+ 108. Kd3 Qf3+ 109. Kc4 Qxb3+
110. Kxb3 g1=Q 111. Kb4 Qd4+ 112. Kb5 Qc3 113. Kb6 Qc4 114. Kb7 Qb5+ 115. Kc8
Qc6+ 116. Kd8 Bf6#) 72. Kc2 {[%emt 0:00:00]} Qxg2+ {[%emt 0:00:05]} 73. Kb3 {
[%emt 0:00:00]} Bf6 {[%emt 0:00:26]} 74. Qd5 {[%emt 0:00:00]} Qb2+ {[%emt 0:01:
06]} 75. Kc4 {[%emt 0:00:00]} Bc3 {[%emt 0:00:49] Threatens to win with ...Be1.
} 76. Qc6 $2 {[%emt 0:00:00]} (76. Qc5 {was worth a try.} Bf6 77. Qe3+ g5 78.
Qh3+ Kg6 79. Qf5+ Kh6 80. Qh3+ Kg6 81. Qf5+ Kh6 82. Qh3+) 76... Qb4+ {[%emt 0:
00:29]} 77. Kd5 {[%emt 0:00:00]} (77. Kd3 $19 Qd4+ 78. Kc2) 77... Qd4+ {
[%emt 0:00:19] Black mates.} 78. Ke6 {[%emt 0:00:00]} Qf6+ {[%emt 0:00:05]} 79.
Kd7 {[%emt 0:00:00]} Qxc6+ {[%emt 0:00:04]} 80. Kxc6 {[%emt 0:00:00]} g5 {
[%emt 0:00:07][%cal Yg6g5,Yg5g4,Yg4g3]} 81. Kd5 {[%emt 0:00:00]} g4 {[%emt 0:
00:20]} 82. Kc4 {[%emt 0:00:00] [#]} g3 $1 {[%emt 0:00:12] Black used his
chance. Weighted Error Value: White=0.25 (precise) /Black=0.21 (precise)} 0-1